Workbook

Sheet dane
A1: REAKCJA PROSTA - wyniki | D1: Wprowadź dane do wydruku:
D2: Nazwa Badanego: | E2: 1
A3: Sygnałów: (12) | B3: =VALUE(MID(A3,SEARCH("(",A3)+1,2)) -> 12
D4: Uwagi: | E4: KALIBER
A5: Kolejne czasy:
A6: 1 >0,216 | B6: =VALUE(MID(A6,SEARCH(">",A6)+1,6)) -> 0.216
A7: 2 >0,226 | B7: 0.226
A8: 3 >0,217 | B8: 0.217
A9: 4 >0,220 | B9: 0.22
A10: 5 >0,234 | B10: 0.234
A11: 6 >0,222 | B11: 0.222
A12: 7 >0,211 | B12: 0.211
A13: 8 >0,200 | B13: 0.2
A14: 9 >0,200 | B14: 0.2
A15: 10 >0,210 | B15: 0.21
A16: 11 >0,282 | B16: 0.282
A17: 12 >0,391 | B17: 0.391
A19: Średnia <min,max> 0,295
A21: Średnia (min,max) 0,29
A24: Układ odniesienia (rok): | B24: czas [ms]
A25: Ben Johnson (1987) | B25: 79
A26: Carl Lewis (1987) | B26: 86
A27: Usain Bolt (2009) | B27: 146
A28: Michael Schumacher (1995) | B28: 160
A29: Ayrton Senna (1990) | B29: 170
A30: Nigel Mansell (1986) | B30: 180
A31: Maciej Żurawski (2006) | B31: 187
A32: Napastnicy KN PZPN (2006) | B32: 206
A33: Bramkarze KN PZPN (2006) | B33: 213
A34: Pomocnicy KN PZPN (2006) | B34: 217
A35: Obrońcy KN PZPN (2006) | B35: 231
A36: Twój wynik | B36: =wydruk!D12 -> 215.25
A37: Średni czas reakcji [ms]: | B37: ocena
A38: 0 | B38: profesjonalny
A39: 180 | B39: wybitny
A40: 200 | B40: bardzo dobry
A41: 230 | B41: dobry
A42: 270 | B42: przeciętny
A43: 320 | B43: słaby
A44: 390 | B44: bardzo słaby
A45: 1001 | B45: anormalny
A47: Wynik koncentracji uwagi [%]: | B47: ocena
A48: 0 | B48: powtórz test
A49: 50 | B49: anormalny
A50: 73 | B50: słaby
A51: 83 | B51: przeciętny
A52: 90 | B52: dobry
A53: 95 | B53: bardzo dobry
A54: 98 | B54: wybitny
A55: 100 | B55: profesjonalny

Sheet wydruk
C1: KALIBER - KURS INSTRUKTORSKI
C2: BIAŁYSTOK
C4: Protokół z pomiaru czasu reakcji
B5: Badany: | C5: =dane!E2 -> 1 | K5: Białystok dn.: | M5: =TODAY() -> 2026-05-08
B6: Uwagi: | C6: =dane!E4 -> KALIBER
B7: Wyniki: | C7: T1 | D7: T2 | E7: T3 | F7: T4 | G7: T5 | H7: T6 | I7: T7 | J7: T8 | K7: T9 | L7: T10 | M7: Średnia aryt.
B8: sekundy: | C8: =dane!B6 -> 0.216 | D8: =dane!B7 -> 0.226 | E8: =dane!B8 -> 0.217 | F8: =dane!B9 -> 0.22 | G8: =dane!B10 -> 0.234 | H8: =dane!B11 -> 0.222 | I8: =dane!B12 -> 0.211 | J8: =dane!B13 -> 0.2 | K8: =dane!B14 -> 0.2 | L8: =dane!B15 -> 0.21 | M8: =AVERAGE(C8:L8) -> 0.2156
B9: milisekundy: | C9: =C8*1000 -> 216 | D9: =D8*1000 -> 226 | E9: 217 | F9: 220 | G9: 234 | H9: 222 | I9: 211 | J9: 200 | K9: 200 | L9: 210 | M9: =AVERAGE(C9:L9) -> 215.6
B10: Charakterystyka opisowa szybkości reakcji ruchowej | L10: =STDEV(C9:L9) -> 10.79300185 | M10: =SQRT((((L10^2)*10)-((D12-D14)^2+(D12-D15)^2))/8) -> 8.520298475
B11: Średni znormalizowany czas prostej reakcji: | F11: Twój wynik jest:
D12: =(SUM(C9:L9)-(D14+D15))/8 -> 215.25 | E12: ms | F12: =VLOOKUP(D12,dane!$A$38:$B$45,2,1) -> bardzo dobry
B13: Koncentracja uwagi: | D13: =(1-(M10/D12))*100 -> 96.04167318 | E13: % | F13: =VLOOKUP(D13,dane!$A$48:$B$55,2,1) -> bardzo dobry
C14: Najkrótszy czas reakcji: | D14: =MIN(C9:L9) -> 200 | E14: ms | F14: =VLOOKUP(D14,dane!$A$38:$B$45,2,1) -> bardzo dobry
C15: Najdłuższy czas reakcji: | D15: =MAX(C9:L9) -> 234 | E15: ms | F15: =VLOOKUP(D15,dane!$A$38:$B$45,2,1) -> dobry
B25: Prognozowana Twoja droga i skuteczność zatrzymania pojazdu
B27: Prędkosć samochodu [km/h] | C27: Całkowita droga [m] | D27: Twoja skuteczność
G30: 40 | H30: =G30/3.6 -> 11.11111111 | I30: 4.2 | J30: 6.7 | K30: =H30+I30+J30 -> 22.01111111 | L30: =(G30/3.6)*($D$12/1000) -> 2.391666667 | M30: =K30-C31 -> 8.719444444
B31: 40 | C31: =L30++I30+J30 -> 13.29166667 | D31: =K30/C31 -> 1.656008359 | G31: 50 | H31: =G31/3.6 -> 13.88888889 | I31: 5.3 | J31: 11.2 | K31: =H31+I31+J31 -> 30.38888889 | L31: 2.989583333 | M31: 10.89930556
B32: 50 | C32: 19.48958333 | D32: 1.559237484 | G32: 60 | H32: 16.66666667 | I32: 6.4 | J32: 16.7 | K32: 39.76666667 | L32: 3.5875 | M32: 13.07916667
B33: 60 | C33: 26.6875 | D33: 1.49008587 | G33: 70 | H33: 19.44444444 | I33: 7.5 | J33: 23.2 | K33: 50.14444444 | L33: 4.185416667 | M33: 15.25902778
B34: 70 | C34: 34.88541667 | D34: 1.4374042 | G34: 80 | H34: 22.22222222 | I34: 8.6 | J34: 30.9 | K34: 61.72222222 | L34: 4.783333333 | M34: 17.43888889
B35: 80 | C35: 44.28333333 | D35: 1.393802534 | G35: 90 | H35: 25 | I35: 9.7 | J35: 39.8 | K35: 74.5 | L35: 5.38125 | M35: 19.61875
B36: 90 | C36: 54.88125 | D36: 1.357476369 | G36: 100 | H36: 27.77777778 | I36: 10.8 | J36: 49.8 | K36: 88.37777778 | L36: 5.979166667 | M36: 21.79861111
B37: 100 | C37: 66.57916667 | D37: 1.327408891
B38: Przewidywana przepisowa droga zatrzymania pojazdu przy różnych prędkościach dla czasu reakcji = 1000ms
B46: źródła:
B47: Guzek M. i wsp.: Czasy reakcji kierowców. Środowiska badań, metodologia i przykładowe wyniki. Wydział Mechaniczny, PSiSS, Logistyka 4, Kraków 2011
B48: Łach P.: Zmiany przewodnictwa nerwowo-mięśniowego pracowników w zależności od wieku. CIOP-PIB, Medycyna Pracy 73(5), Warszawa 2022
B49: KHELNOW: https://khelnow.com/formula-racing/2023-05-formula-1-fastest-reaction-time. WEB, May 24, 2023 | L49: R. Dargiewicz ©2024
